Cogmind - Beta 13 @@@ ROGUE MODE // 2024.04.25 @ 17:20:44 Player: graour Result: Destroyed by CI-5SD(R) with Subdweller Machine Gun Performance ------------- Evolutions (0) 0 Regions Visited (3) 600 Robots Destroyed (22) 110 Value Destroyed (373) 373 Prototype IDs (0) 0 Alien Tech Used (0) 0 Bonus (7) 7 TOTAL SCORE: 1090 Bonus ------- Follower Combat Kills 7 Cogmind --------- Core Integrity 0/250 Matter 300/300 Energy 249/250 System Corruption 0% Temperature Cool (0) Movement Rolling (130) Ox2 Location -10/Subcaves Parts ------- > --- POWER (1) -------- Ion Engine > --- PROPULSION (2) --- Light Treads Compact Wheel > --- UTILITY (2) ------ High-capacity Storage Unit Sensor Array > --- WEAPON (2) ------- Light Assault Rifle Light Assault Rifle > --- INVENTORY (20) --- Ion Engine Subdweller Power Source Large Matter Pod (150) Terrain Scanner Seismic Detector Seismic Detector Power Shielding Medium Laser Medium Laser Subdweller Laser Light Assault Rifle Light Assault Rifle Light Assault Rifle Light Assault Rifle Battle Cannon Grenade Launcher Mining Laser Explosive Trap Explosive Trap Explosive Trap Peak State ------------ > --- POWER ------------ Ion Engine > --- PROPULSION ------- Light Treads Compact Wheel > --- UTILITY ---------- High-capacity Storage Unit Sensor Array > --- WEAPON ----------- Light Assault Rifle Light Assault Rifle > --- INVENTORY -------- Ion Engine Subdweller Power Source Large Matter Pod Terrain Scanner Seismic Detector Seismic Detector Power Shielding Medium Laser Medium Laser Subdweller Laser Light Assault Rifle Light Assault Rifle Light Assault Rifle Light Assault Rifle Grenade Launcher Mining Laser Explosive Trap Explosive Trap Explosive Trap [Rating: 9] Favorites ----------- Power Ion Engine Engine Ion Engine Propulsion Light Treads Treads Light Treads Wheel Wheel Utility Sensor Array Device Sensor Array Storage High-capacity Storage Unit Weapon Light Assault Rifle Energy Gun Medium Laser Ballistic Gun Light Assault Rifle Launcher Grenade Launcher Build | -11 -10 -10 -10 ------- Run | Yrd Mat Min Sub Slots Evolved . | . . . . Power . | . . . . Propulsion . | . . . . Utility . | . . . . Weapon . | . . . . Parts Attached 28 | 5 9 14 . Power 7 | 1 4 2 . Engine 7 | 1 4 2 . Core . | . . . . Reactor . | . . . . Propulsion 8 | 2 2 4 . Treads 2 | . 1 1 . Leg . | . . . . Wheel 6 | 2 1 3 . Hover . | . . . . Flight . | . . . . Utility 4 | 1 2 1 . Device 1 | . 1 . . Storage 3 | 1 1 1 . Processor . | . . . . Hackware . | . . . . Protection . | . . . . Artifact . | . . . . Weapon 9 | 1 1 7 . Energy Gun 2 | . 1 1 . Energy Cannon . | . . . . Ballistic Gun 6 | 1 . 5 . Ballistic Cannon . | . . . . Launcher 1 | . . 1 . Special Weapon . | . . . . Impact Weapon . | . . . . Slashing Weapon . | . . . . Piercing Weapon . | . . . . Special Melee Weapon . | . . . . Unidentified Prototypes . | . . . . Parts Lost 7 | . 2 5 . Power 2 | . 1 1 . Propulsion 4 | . 1 3 . Utility . | . . . . Weapon 1 | . . 1 . Highest Loss Streak 3 | . 2 3 . To Critical Strikes . | . . . . Average Slot Usage (%) 99 | . 97 99 100 Engine 13 | . 13 14 14 Treads 11 | . 5 14 14 Wheel 16 | . 21 13 14 Device 13 | . 13 14 14 Storage 14 | . 14 14 14 Energy Gun 10 | . 14 11 . Ballistic Gun 17 | . 14 16 28 Naked Turns . | . . . . Heaviest Build 48 | 9 19 48 48 Greatest Support 26 | 26 26 16 16 Greatest Overweight (x) 4 | . 1 4 2 Average Overweight (x) 1 | . . 2 2 Largest Inventory Capacity 20 | 8 10 20 20 Average Capacity 15 | 6 9 18 20 Most Carried 20 | 5 10 17 20 Average Carried 12 | 2 8 14 19 Final Capacity 20 | 8 10 20 20 Final Carried 20 | 5 10 17 20 Class Distribution -------------------- 100% | Mutant Dominant Class ---------------- Mutant | -10/Materials Mutant | -10/Mines Mutant | -10/Subcaves Resources | -11 -10 -10 -10 ----------- Run | Yrd Mat Min Sub Matter Collected 668 | 187 320 161 . Remotely . | . . . . Salvage Created 584 | . 375 209 . Parts 42 | . 18 24 . Haulers Intercepted 1 | . 1 . . Recyclers Shooed . | . . . . Parts Field Recycled . | . . . . Retrieved Matter . | . . . . Parts Self-Destructed 3 | . . . 3 Prevented . | . . . . Kills | -11 -10 -10 -10 ------- Run | Yrd Mat Min Sub Combat Hostiles Destroyed 16 | . 5 11 . Guns 15 | . 5 10 . AOE 1 | . . 1 . Classes Destroyed 6 | . 4 2 . Worker 2 | . 2 . . Tunneler 1 | . . 1 . Hauler 1 | . 1 . . Recycler 2 | . 2 . . Swarmer 10 | . . 10 . Grunt 6 | . 5 1 . Best Kill Streak 4 | . 4 3 . Combat Bots Only 3 | . 3 3 . Max Kills in Single Turn 4 | . 4 2 . Gunslinging 1 | . . 1 . Exploded 1 | . . 1 . Melee . | . . . . Uniques/NPCs Destroyed . | . . . . Combat | -11 -10 -10 -10 -------- Run | Yrd Mat Min Sub Hostile Shots Fired 107 | . 25 76 6 Missed 25 | . 3 20 2 Damage Taken 1071 | . 414 575 82 Core 256 | . 126 89 41 Absorbed by Shields . | . . . . Core Remaining (%) 100 | 100 . . . Volleys Fired 62 | . 27 35 . Largest 2 | . 2 2 . Hottest 80 | . 70 80 . Shots Fired 122 | . 54 68 . Gun 121 | . 54 67 . Cannon . | . . . . Launcher 1 | . . 1 . Special . | . . . . Kinetic 62 | . 27 35 . Thermal 59 | . 27 32 . Explosive 1 | . . 1 . Electromagnetic . | . . . . Robot Hit Streak 12 | . 12 7 . Robot Miss Streak 5 | . 2 5 . Penetration Max . | . . . . Secondary Targets 6 | . 3 3 . Max Gunslinging Chain 1 | . 1 1 . Shots Hit Robots 75 | . 38 37 . Core Hits 38 | . 20 18 . Critical Kills . | . . . . Critical Parts Destroyed 1 | . . 1 . Critical Strikes 6 | . 4 2 . Burn 5 | . 4 1 . Destroy 1 | . . 1 . Melee Attacks . | . . . . Impact . | . . . . Slashing . | . . . . Piercing . | . . . . Sneak Attacks . | . . . . Combat Hostiles . | . . . . Follow-up Attacks . | . . . . Damage Inflicted 1090 | . 656 434 . Guns 741 | . 388 353 . Cannons . | . . . . Explosions 349 | . 268 81 . Melee . | . . . . Ramming . | . . . . Kinetic 342 | . 152 190 . Thermal 667 | . 504 163 . Explosive 81 | . . 81 . Electromagnetic . | . . . . Impact . | . . . . Slashing . | . . . . Piercing . | . . . . Highest Corruption . | . . . . Average Corruption . | . . . . Corruption Purged . | . . . . Corruption Blocked . | . . . . Overload Shots . | . . . . Overflow Damage 45 | . 45 . . Projectiles . | . . . . Explosions 45 | . 45 . . Melee . | . . . . Knockbacks . | . . . . Impact . | . . . . Kinetic . | . . . . Secondary . | . . . . Self-Inflicted Damage 157 | . 123 34 . Shots 3 | . 2 1 . Rammed . | . . . . Targets Rammed . | . . . . Kicked . | . . . . Crushed . | . . . . Highest Temperature 294 | . 294 156 . Average Temperature 88 | . 118 58 . Received Heat Transfer 354 | . 201 144 9 Effects 1 | . 1 . . Energy Bleed 1 | . 1 . . Siege Activations . | . . . . Robots Corrupted . | . . . . Combat Hostiles . | . . . . Parts Fried . | . . . . Impact Corruptions . | . . . . Robots Melted . | . . . . Combat Hostiles . | . . . . Parts Melted 2 | . 2 . . Heat Transferred 1671 | . 1199 472 . Parts Sabotaged . | . . . . Parts Stolen . | . . . . Parts Stripped . | . . . . Power Chain Reactions . | . . . . Alert | -11 -10 -10 -10 ------- Run | Yrd Mat Min Sub Peak Influence 259 | . 259 211 . Initial 37 | . . 37 . Average 80 | . 87 82 . Maximum Alert Level 1 | . 1 1 . Low Security (%) 94 | 100 85 99 . Level 1 5 | . 14 . . Level 2 . | . . . . Level 3 . | . . . . Level 4 . | . . . . Level 5 . | . . . . High Security . | . . . . Max Security . | . . . . Squads Dispatched 1 | . 1 . . Investigation 1 | . 1 . . Extermination . | . . . . Reinforcement . | . . . . Assault . | . . . . Garrison . | . . . . Intercept . | . . . . Searches Triggered . | . . . . Construction Impeded . | . . . . Haulers Reinforced . | . . . . Active Scanning Responses . | . . . . Cargo Convoy Interrupts . | . . . . Stealth | -11 -10 -10 -10 --------- Run | Yrd Mat Min Sub Distress Signals 2 | . 2 . . Communications Jammed . | . . . . Distress Signals . | . . . . Times Spotted 27 | . 11 14 2 Peak Tracking Total 4 | . 4 3 2 Tactical Retreats . | . . . . Traps | -11 -10 -10 -10 ------- Run | Yrd Mat Min Sub Traps Triggered 2 | . 2 . . Indirectly . | . . . . Trap Hack Attempts . | . . . . Triggered . | . . . . Disarmed . | . . . . Reprogrammed . | . . . . Reused . | . . . . Traps Extracted . | . . . . Installed . | . . . . Triggered . | . . . . Most Traps Carried 3 | . . 3 3 Machines | -11 -10 -10 -10 ---------- Run | Yrd Mat Min Sub Machines Disabled 2 | . 2 . . Max in Single Turn 2 | . 2 . . Machines Repaired . | . . . . Machines Dismantled . | . . . . Machines Sabotaged . | . . . . Overloaded Fab Kills . | . . . . Hacking | -11 -10 -10 -10 --------- Run | Yrd Mat Min Sub Machines Accessed 6 | . 6 . . Terminals 4 | . 4 . . Fabricators . | . . . . Repair Stations . | . . . . Recycling Units 2 | . 2 . . Scanalyzers . | . . . . Garrison Access . | . . . . Total Hacks 15 | . 15 . . Successful 7 | . 7 . . Failed 8 | . 8 . . Catastrophic . | . . . . Database Lockouts . | . . . . Manual 8 | . 8 . . Terminals 9 | . 9 . . Fabricators . | . . . . Repair Stations . | . . . . Recycling Units 6 | . 6 . . Scanalyzers . | . . . . Garrison Access . | . . . . Terminal Hacks 4 | . 4 . . Branch Access Points 1 | . 1 . . Dispatch Records 1 | . 1 . . Hauler Manifests 1 | . 1 . . Zone Layout 1 | . 1 . . Fabricator Hacks . | . . . . Repair Station Hacks . | . . . . Recycling Unit Hacks 1 | . 1 . . Retrieve Components 1 | . 1 . . Scanalyzer . | . . . . Garrison Access Hacks . | . . . . Unauthorized Hacks 2 | . 2 . . Terminals 2 | . 2 . . Botnet 1 | . 1 . . Operators 1 | . 1 . . Fabricators . | . . . . Repair Stations . | . . . . Recycling Units . | . . . . Scanalyzers . | . . . . Garrison Access . | . . . . Data Cores Recovered . | . . . . Used . | . . . . Hacking Detections 3 | . 3 . . Full Trace Events . | . . . . Feedback Events . | . . . . Feedback Blocked . | . . . . Robot Schematics Acquired . | . . . . Robots Built . | . . . . Authchips . | . . . . Time . | . . . . Total Robot Build Rating . | . . . . Part Schematics Acquired . | . . . . Parts Built . | . . . . Authchips . | . . . . Time . | . . . . Total Part Build Rating . | . . . . Parts Repaired . | . . . . Time . | . . . . Parts Recycled . | . . . . Recycled Matter . | . . . . Retrieved Matter . | . . . . Retrieved Components . | . . . . Parts Scanalyzed . | . . . . Part Schematics Acquired . | . . . . Parts Damaged . | . . . . Bothacking | -11 -10 -10 -10 ------------ Run | Yrd Mat Min Sub Used RIF Installer . | . . . . Robots Hacked . | . . . . Non-combat . | . . . . Combat . | . . . . Robot Hacks Applied . | . . . . Relay Couplers Released . | . . . . Fabnet Peak Effective % . | . . . . Robots Rewired . | . . . . Allies Hacked . | . . . . Hacks Repelled . | . . . . Allies | -11 -10 -10 -10 -------- Run | Yrd Mat Min Sub Total Allies 1 | . . 1 . Largest Group 1 | . . 1 . Highest-Rated Group 31 | . . 31 . Highest-Rated Ally 31 | . . 31 . Total Orders . | . . . . Ally Attacks 8 | . . 8 . Total Damage 61 | . . 61 . Kills 1 | . . 1 . Allies Corrupted . | . . . . Allies Melted . | . . . . Intel | -11 -10 -10 -10 ------- Run | Yrd Mat Min Sub Robot Analysis Total . | . . . . Derelict Logs Recovered 2 | . . 2 . Drone Launches . | . . . . Drone Recoveries . | . . . . Exploration | -11 -10 -10 -10 ------------- Run | Yrd Mat Min Sub Turns Passed 1580 | 53 502 849 176 Spaces Moved 1127 | 47 382 564 134 Core 2 | 2 . . . Treads 15 | . 15 . . Legs . | . . . . Wheels 1110 | 45 367 564 134 Hover . | . . . . Flight . | . . . . Fastest Speed 50 | 50 80 95 130 Average Speed 113 | 87 90 126 130 Slowest Speed 160 | 90 160 140 130 Overloaded Moves . | . . . . Propulsion Burnouts . | . . . . Robots Hopped . | . . . . Cave-ins Triggered . | . . . . Exploration Rate (%) 43 | 3 60 98 12 Regions Visited 3 Branch Regions 2 Pre-discovered Areas 1 | . . 1 . Known Exits Taken 1 | . 1 . . Unknown Exits Taken 2 | 1 . 1 . Scrap Searched 2 | . . 1 1 Spaces Dug . | . . . . Terrain Destroyed 45 | . 35 10 . Melee . | . . . . Projectile . | . . . . AOE 45 | . 35 10 . Terrain Rammed . | . . . . Walls Destroyed . | . . . . Machines Disabled . | . . . . Actions | -11 -10 -10 -10 --------- Run | Yrd Mat Min Sub Total 1313 | 56 486 634 137 Wait 75 | . 62 13 . Move 1124 | 46 381 563 134 Hop . | . . . . Pick Up 20 | 5 5 7 3 Fast Attach 8 | 5 3 . . Attach 7 | . 2 5 . Detach . | . . . . Swap 13 | . 4 9 . Drop 4 | . 2 2 . Fire 62 | . 27 35 . Melee . | . . . . Ram . | . . . . Kick . | . . . . Crush . | . . . . Escape Stasis . | . . . . Rewire . | . . . . Trap . | . . . . Miscellaneous . | . . . . Route ------- -11/Scrapyard -10/Materials -10/Mines (discovered 3 exits: *Mat x2 / [*Sub]) -10/Subcaves History --------- Turn | Location | Event 14 | -11/Scrapyard | Discovered new exit (range 16) 54 | -11/Scrapyard | Entered Materials 304 | -10/Materials | Build established: Mutant 362 | -10/Materials | Core integrity fell below 50% 513 | -10/Materials | Identified exit to Mines 556 | -10/Materials | Entered Mines 590 | -10/Mines | Identified exit to Materials 602 | -10/Mines | Found a hidden stash of uninstalled traps 796 | -10/Mines | Discovered exit to Materials (range 7) 862 | -10/Mines | Received a Mining Laser from a helpful Derelict 1233 | -10/Mines | Core integrity fell below 20% 1280 | -10/Mines | Lost 3 parts (1p1n1w) 1400 | -10/Mines | Discovered new exit (range 4) 1405 | -10/Mines | Entered Subcaves 1414 | -10/Subcaves | Shifting Twisted Machinery released Sub. Power Source 1487 | -10/Subcaves | Shifting Twisted Machinery released Battle Cannon 1581 | -10/Subcaves | Destroyed by CI-5SD(R) with Subdweller Machine Gun Last Messages --------------- 01254_ Destroyed Ion Engine. 01256_ G-34 Mercenary destroyed. 01259_ Acquired 30 matter. 01312_ Acquired Explosive Trap. 01395_ T-07 Excavator is excavating. 01400_ EXIT=FOUND LOCATION=UNKNOWN AMBIENT_HEAT=-10 GOAL=ESCAPE Sub. Power Source falls loose from the Twisted Machinery. 01424_ Acquired Sub. Power Source. 01431_ Searching scrap... 01431_ Found Sub. Laser. 01431_ Found 20 Matter. 01433_ Subatomizers dissect the Sub. Laser. 01434_ Acquired Sub. Laser. Battle Cannon falls loose from the Twisted Machinery. 01497_ Acquired Battle Cannon. Map ----- +----------------------------------------------------+ | ????????????????????????????????????????#""## #? | | ????????????????????????????????????????##"##"" #? | | ?????????????????????????????????????????#" " #? | | ?????????????????????????????????????????#" #" ##? | | ?????????????????????????????????????????#" #?? | | ?????????????????????????????????????????###"" ### | | ???????????????????????????????????????????# | | ?????????????????????????????????####?????### | | ?????????????????????????????????# #### ### | | ????????????????????????????????#" ### | | ?????????????????????????????????# " | | ?????????????????????????????????#" # ## | | ?????????????????????????????????"" ##?#### | | ??????????????????????????????????"???????# | | ?????????????????????##???????????????????## | | ???????????????????### ????#???????????????### | | ?????????????# ????# #??# ?????????????????## | | ?????????????? ???? ## ??????????????????# | | ??????????????? ??## # ?????????????????## | | ???????????????? ## ????####??????????# | | ?????????????????? ???## ##???####### | | ??????????????????? ?### ##### ## | | ????????????????????# ## ## ###" | | ????????????????????# ## # ## | | ????????????????????# ## | | ????????????????????# @## | | ????????????????????# ## | | ????????????????# ## # | | ????????????????# ###### # | | ????????????????## #????###### # | | ?????????????????# #?????????### ## ## | | ?????????????????## ##???????????######?# | | ??????????????????## R #???????????????????? | | ???????????????????## ### #???????????????????? | | ????????????????????##??## ##???????????????????? | | ?????????????????????????# #????????????????????? | | ?????????????????????????# #????????????????????? | | ????????????????????????? #????????????????????? | | ????????????????????????? ##????????????????????? | | ????????????????????????? ??????????????????????? | | ?????????????????????????# ??????????????????????? | | ??????????????????????????#??????????????????????? | | ?????????????????????????????????????????????????? | | ?????????????????????????????????????????????????? | | ?????????????????????????????????????????????????? | | ?????????????????????????????????????????????????? | | ?????????????????????????????????????????????????? | | ?????????????????????????????????????????????????? | | ?????????????????????????????????????????????????? | | ?????????????????????????????????????????????????? | +----------------------------------------------------+ Best States ------------- Heat Dissipation 25 Energy Generation 10 Energy Capacity 250 Matter Stores 300 Matter Capacity 300 Sight Range 16 Robot Scan Range 14 Terrain Scan Density 10 Evasion (%) 44 Recoil Reduction 1 Item Schematics ----------------- None Robot Schematics ------------------ None Fabricated ------------ Nothing Alien Tech Used ----------------- None Achievements -------------- None Challenges ------------ None Game ------ Seed GhostHeatBrace Manual? 0 Play Time 00:11:10 Cumulative 45.9 hours Start 2024.04.25 @ 17:10:10 End 2024.04.25 @ 17:20:44 Sessions 1 Manual Loads 0 Difficulty Rogue Special Mode None Game No. 67 Rogue 67 Adventurer 0 Explorer 0 Win Type - Total 0 Types 0/0/0/0/0/0/0/0/0 Lore% 39 Gallery% 48 Achievement% 32 Wizard Run 0 Options --------- Layout 1 ASCII 0 Keyboard 1 Movement Arrows Keybinds 0 Fullscreen 2 Font 24/Smallcaps Map View 50x35 Zoom Use 0% Tactical HUD 1 Map Filters NONE Filters NONE Steam 1 RUN: 7608a6d7-7bf1-4aa3-ad0d-e560bfcb48b9